fUSD/lending_fUSD_20250511
["ID","MTS","AMOUNT","RATE_DAILY","PERIOD"]
[360718508,1746949869436,-215.86,0.00019999,2]
[360718509,1746949869446,-400.0,0.00019999,2]
[360718510,1746949869457,-414.89,0.00019999,2]
[360718511,1746949869467,-400.0,0.00019999,2]
[360718512,1746949869478,-251.62,0.00019999,2]
[360718513,1746949869488,-498.68928379,0.00019999,2]
[360718514,1746949869499,-400.0,0.00019999,2]
[360718515,1746949869509,-247.60646616,0.00019999,2]
[360718516,1746949869519,-491.63,0.00019999,2]
[360718517,1746949869530,-491.63,0.00019999,2]
[360718518,1746949869540,-491.63,0.00019999,2]
[360718519,1746949869550,-400.0,0.00019999,2]
[360718520,1746949869560,-491.63,0.00019999,2]
[360718521,1746949869570,-400.0,0.00019999,2]
[360718522,1746949869580,-491.63,0.00019999,2]
[360718523,1746949869590,-400.0,0.00019999,2]
[360718524,1746949869600,-491.63,0.00019999,2]
[360718525,1746949869610,-400.0,0.00019999,2]
[360718526,1746949869619,-491.63,0.00019999,2]
[360718527,1746949869630,-400.0,0.00019999,2]
[360718528,1746949869642,-491.63,0.00019999,2]
[360718529,1746949869652,-152.71022,0.00019999,2]
[360718530,1746949869662,-400.0,0.00019999,2]
[360718531,1746949869672,-491.63,0.00019999,2]
[360718532,1746949869682,-400.0,0.00019999,2]
[360718533,1746949869692,-381.99093601,0.00019999,2]
[360718534,1746949869701,-491.63,0.00019999,2]
[360718535,1746949869711,-491.63,0.00019999,2]
[360718536,1746949869721,-491.63,0.00019999,2]
[360718537,1746949869731,-491.63,0.00019999,2]
[360718538,1746949869740,-491.63,0.00019999,2]
[360718539,1746949869750,-491.63,0.00019999,2]
[360718540,1746949869760,-491.63,0.00019999,2]
[360718541,1746949869770,-491.63,0.00019999,2]
[360718542,1746949869779,-491.63,0.00019999,2]
[360718543,1746949869789,-491.63,0.00019999,2]
[360718544,1746949869799,-400.0,0.00019999,2]
[360718545,1746949869810,-491.71005883,0.00019999,2]
[360718546,1746949869820,-400.0,0.00019999,2]
[360718547,1746949869829,-400.0,0.00019999,2]
[360718548,1746949869839,-225.37001647,0.00019999,2]
[360718549,1746949869849,-625.0,0.00019999,2]
[360718550,1746949869858,-471196.62729597,0.0002,2]
[360718551,1746949869871,-264.775,0.0002,2]
[360718552,1746949869886,-30248.71573301,0.0002,2]
[360718553,1746949869897,-1289.11934925,0.0002,2]
[360718554,1746949869907,-2000.0,0.0002,4]
[360718555,1746949869918,-2000.0,0.0002,4]
[360718556,1746949869928,-2000.0,0.0002,4]
[360718557,1746949869937,-2000.0,0.0002,4]
[360718558,1746949869947,-2000.0,0.0002,4]
[360718559,1746949869957,-2000.0,0.0002,4]
[360718560,1746949869966,-17966.65410898,0.0002,2]
[360718561,1746949869985,-400.0,0.00019988,2]
[360718562,1746949869994,-4773.102,0.0002,2]
[360718563,1746949870006,-78567.97705835,0.0002,2]
[360718564,1746949870032,-400.0,0.00019258,2]
[360718565,1746949870042,-151.0,0.00019999,2]
[360718566,1746949870051,-124.70608238,0.0002,2]
[360718567,1746949870062,-117500.0,0.0002,2]
[360718568,1746949870079,-400.0,0.00019998,2]
[360718569,1746949870089,-832.0839,0.0002,2]
[360718570,1746949894717,3532.41549687,0.0003013,120]
[360718571,1746949928897,-300.0,0.00018106,2]
[360718572,1746949928939,-500.0,0.00018107,2]
[360718573,1746949928977,-500.0,0.00018107,2]
[360718574,1746949929014,-500.0,0.00018107,2]
[360718575,1746949929052,-500.0,0.00018107,2]
[360718576,1746949929093,-500.0,0.00018107,2]
[360718577,1746949929130,-500.0,0.00018107,2]
[360718578,1746949929166,-500.0,0.00018107,2]
[360718579,1746949929204,-500.0,0.00018107,2]
[360718580,1746949929241,-500.0,0.00018107,2]
[360718581,1746949929278,-500.0,0.00018107,2]
[360718582,1746949929315,-500.0,0.00018107,2]
[360718583,1746949929353,-500.0,0.00018107,2]
[360718584,1746949929389,-500.0,0.00018107,2]
[360718585,1746949929427,-500.0,0.00018107,2]
[360718586,1746949929465,-500.0,0.00018107,2]
[360718587,1746949929502,-500.0,0.00018107,2]
[360718588,1746949929538,-525.39033032,0.00018107,2]
[360718589,1746949929575,-500.0,0.00018107,2]
[360718590,1746949929611,-500.0,0.00018107,2]
[360718591,1746949929648,-500.0,0.00018107,2]
[360718592,1746949929690,-500.0,0.00018107,2]
[360718593,1746949929727,-500.0,0.00018107,2]
[360718594,1746949929763,-500.0,0.00018107,2]
[360718595,1746949929801,-500.0,0.00018107,2]
[360718596,1746949929838,-500.0,0.00018107,2]
[360718597,1746949929876,-500.0,0.00018107,2]
[360718598,1746949929912,-500.0,0.00018107,2]
[360718599,1746949929950,-500.0,0.00018107,2]
[360718600,1746949929986,-500.0,0.00018107,2]
[360718601,1746949930025,-500.0,0.00018107,2]
[360718602,1746949930051,-250.0,0.00018128,2]
[360718603,1746949930078,-200.0,0.00018128,2]
[360718604,1746949930105,-187.90658769,0.00018149,2]
[360718605,1746949931205,1101.823118,0.00018015,2]
[360718606,1746949969054,500.0,0.00018107,2]
[360718607,1746949969098,234.67007877,0.00018107,2]
[360718608,1746949969147,500.0,0.00018107,2]
[360718610,1746949984832,718.37,0.00017063,2]
[360718636,1746950398844,506.0,0.0003,30]
[360718638,1746950464518,250.0,0.00017,2]
[360718639,1746950676730,151.97,0.00013699,2]
[360718645,1746950833124,-540.265504,0.00017947,2]
[360718646,1746950833146,-250.0,0.00018038,2]
[360718647,1746950833166,-184.92,0.00018083,2]
[360718648,1746950833188,-58.4956266,0.00018149,2]
[360718649,1746950887604,493.92,0.00020575,30]
[360718650,1746950918349,421.21,0.00025163,120]
[360718651,1746950918543,421.21,0.00027451,120]
[360718671,1746950995032,445.86049311,0.0003013,120]
[360718686,1746951032180,-164.42150949,0.00017992,2]
[360718689,1746951032190,-2098.38362174,0.00018,2]
[360718692,1746951032200,-1000.0,0.00018092,2]
[360718695,1746951032209,-300.0,0.00018118,2]
[360718698,1746951032219,-1200.0,0.00018119,2]
[360718701,1746951032229,-300.0,0.00018119,2]
[360718704,1746951032239,-500.0,0.00018119,2]
[360718707,1746951032248,-500.0,0.00018119,2]
[360718709,1746951032258,-500.0,0.00018119,2]
[360718711,1746951032267,-500.0,0.00018119,2]
[360718713,1746951032277,-500.0,0.00018119,2]
[360718715,1746951032287,-500.0,0.00018119,2]
[360718717,1746951032297,-500.0,0.00018119,2]
[360718718,1746951032307,-500.0,0.00018119,2]
[360718720,1746951032316,-500.0,0.00018119,2]
[360718722,1746951032326,-500.0,0.00018119,2]
[360718723,1746951032336,-500.0,0.00018119,2]
[360718725,1746951032346,-500.0,0.00018119,2]
[360718727,1746951032355,-500.0,0.00018119,2]
[360718729,1746951032366,-500.0,0.00018119,2]
[360718731,1746951032375,-500.0,0.00018119,2]
[360718733,1746951032385,-500.0,0.00018119,2]
[360718736,1746951032398,-500.0,0.00018119,2]
[360718738,1746951032408,-500.0,0.00018119,2]
[360718740,1746951032418,-500.0,0.00018119,2]
[360718742,1746951032427,-500.0,0.00018119,2]
[360718743,1746951032436,-500.0,0.00018119,2]
[360718745,1746951032446,-500.0,0.00018119,2]
[360718746,1746951032455,-500.0,0.00018119,2]
[360718748,1746951032466,-500.0,0.00018119,2]
[360718750,1746951032476,-500.0,0.00018119,2]
[360718751,1746951032486,-500.0,0.00018119,2]
[360718752,1746951032496,-500.0,0.00018119,2]
[360718753,1746951032507,-500.0,0.00018119,2]
[360718754,1746951032516,-500.0,0.00018119,2]
[360718755,1746951032526,-500.0,0.00018119,2]
[360718756,1746951032536,-500.0,0.00018119,2]
[360718757,1746951032545,-500.0,0.00018119,2]
[360718758,1746951032555,-614.3803228,0.00018119,2]
[360718759,1746951032565,-500.0,0.00018119,2]
[360718760,1746951032574,-23900.0,0.0001812,2]
[360718761,1746951032584,-151.0,0.00018149,2]
[360718762,1746951032594,-276.6296521,0.000182,2]
[360718763,1746951032604,-421.21,0.00018301,2]
[360718764,1746951032617,-250.0,0.00018436,2]
[360718765,1746951032627,-500.0,0.00018443,3]
[360718766,1746951032637,-164.42150949,0.00018675,2]
[360718767,1746951032646,-317.4553,0.00018721,2]
[360718768,1746951032656,-192.0,0.00018774,2]
[360718769,1746951032665,-500.0,0.00018775,2]
[360718770,1746951032675,-653.64166073,0.0001878,2]
[360718771,1746951032684,-151.0,0.00018809,2]
[360718772,1746951032693,-2886.21,0.00018821,2]
[360718773,1746951032703,-19999.99,0.00018821,2]
[360718774,1746951032713,-10953.7,0.00018821,2]
[360718775,1746951032722,-151.0,0.00018873,2]
[360718776,1746951032731,-155.0,0.00018873,2]
[360718777,1746951032740,-151.0,0.00018873,2]
[360718778,1746951032749,-207.4,0.00018873,2]
[360718779,1746951032758,-668.65185757,0.00018873,2]
[360718780,1746951032768,-19021.91889729,0.0001888,2]
[360718781,1746951033815,-752.87110271,0.0001888,2]
[360718782,1746951033825,-202.56880624,0.000189,2]
[360718783,1746951033835,-202.56880611,0.00018963,2]
[360718784,1746951033848,-150.0,0.00018986,7]
[360718785,1746951033860,-300.0,0.00019,2]
[360718786,1746951033870,-30.2076188,0.00019011,2]
[360718787,1746951033884,-149.8323812,0.00019011,2]
[360718788,1746951033894,-149.12438067,0.00019025,2]
[360718789,1746951033906,-53.44442544,0.00019025,2]
[360718790,1746951033915,-200.0,0.00019027,2]
[360718791,1746951033925,-802.21022092,0.00019058,2]
[360718792,1746951033942,-4663.93227908,0.00019058,2]
[360718793,1746951033952,-202.56880611,0.00019088,2]
[360718794,1746951033961,-202.56880611,0.0001915,2]
[360718795,1746951033970,-500.0,0.0001915,2]
[360718796,1746951033980,-500.0,0.0001915,2]
[360718797,1746951033989,-4881.93500033,0.00019158,2]
[360718798,1746951033998,-362.5,0.00019158,2]
[360718800,1746951034008,-723.4456,0.00019158,2]
[360718802,1746951034018,-4587.1324,0.00019159,2]
[360718804,1746951034027,-1000.0,0.00019159,2]
[360718805,1746951034036,-1248.8482,0.00019159,2]
[360718807,1746951034047,-414.3473,0.00019159,2]
[360718808,1746951034056,-500.0,0.00019178,2]
[360718809,1746951034064,-500.0,0.00019178,2]
[360718810,1746951034073,-500.0,0.00019178,2]
[360718811,1746951034083,-500.0,0.00019178,2]
[360718812,1746951034092,-408.78573095,0.00019178,2]
[360718814,1746951034102,-500.0,0.00019178,2]
[360718816,1746951034112,-500.0,0.00019178,2]
[360718817,1746951034122,-500.0,0.00019178,2]
[360718818,1746951034132,-500.0,0.00019178,2]
[360718819,1746951034141,-500.0,0.00019178,2]
[360718820,1746951034151,-500.0,0.00019178,2]
[360718821,1746951034160,-500.0,0.00019178,2]
[360718823,1746951034170,-500.0,0.00019178,2]
[360718824,1746951034180,-500.0,0.00019178,2]
[360718826,1746951034189,-500.0,0.00019178,2]
[360718828,1746951034199,-500.0,0.00019178,2]
[360718830,1746951034209,-500.0,0.00019178,2]
[360718831,1746951034218,-500.0,0.00019178,2]
[360718832,1746951034227,-500.0,0.00019178,2]
[360718833,1746951034237,-500.0,0.00019178,2]
[360718834,1746951034246,-500.0,0.00019178,2]
[360718835,1746951034255,-500.0,0.00019178,2]
[360718836,1746951034265,-500.0,0.00019178,2]
[360718837,1746951034274,-500.0,0.00019178,2]
[360718838,1746951034283,-500.0,0.00019178,2]
[360718839,1746951034293,-500.0,0.00019178,2]
[360718840,1746951034302,-596.17242474,0.00019178,2]
[360718841,1746951034312,-500.0,0.00019178,2]
[360718842,1746951034321,-500.0,0.00019178,2]
[360718843,1746951034333,-500.0,0.00019178,2]
[360718844,1746951034344,-500.0,0.00019178,2]
[360718845,1746951034354,-152.05532382,0.00019178,2]
[360718846,1746951034364,-500.0,0.00019178,2]
[360718847,1746951034374,-500.0,0.00019178,2]
[360718848,1746951034384,-500.0,0.00019178,2]
[360718849,1746951034393,-500.0,0.00019178,2]
[360718850,1746951034403,-151.0,0.00019178,2]
[360718851,1746951034413,-1500.0,0.00019178,2]
[360718852,1746951034423,-173.39,0.00019178,2]
[360718853,1746951034433,-2328.0,0.00019178,2]
[360718854,1746951034443,-202.56880611,0.00019213,2]
[360718855,1746951034453,-4881.93500029,0.0001924,2]
[360718856,1746951034462,-400.0,0.00019258,2]
[360718857,1746951034472,-400.0,0.00019258,2]
[360718858,1746951034482,-400.0,0.00019258,2]
[360718859,1746951034492,-400.0,0.00019258,2]
[360718860,1746951034501,-447.48835949,0.00019258,2]
[360718861,1746951034510,-400.0,0.00019258,2]
[360718862,1746951034520,-400.0,0.00019258,2]
[360718863,1746951034531,-400.0,0.00019258,2]
[360718864,1746951034541,-158.5612419,0.00019258,2]
[360718865,1746951034551,-400.0,0.00019258,2]
[360718866,1746951034560,-400.0,0.00019258,2]
[360718867,1746951034570,-400.0,0.00019258,2]
[360718868,1746951034579,-400.0,0.00019258,2]
[360718869,1746951034589,-400.0,0.00019258,2]
[360718870,1746951034598,-161.45171632,0.00019258,2]
[360718871,1746951034608,-215.39322756,0.00019258,2]
[360718876,1746951039317,-500.0,0.00019178,2]
[360718877,1746951039326,-500.0,0.00019178,2]
[360718878,1746951039336,-500.0,0.00019178,2]
[360718879,1746951039345,-500.0,0.00019178,2]
[360718880,1746951039355,-500.0,0.00019178,2]
[360718881,1746951039363,-500.0,0.00019178,2]
[360718882,1746951039373,-500.0,0.00019178,2]
[360718883,1746951039382,-200.0,0.00019178,2]
[360718884,1746951039391,-500.0,0.00019178,2]
[360718885,1746951039402,-184.60677244,0.00019258,2]
[360718886,1746951039411,-400.0,0.00019258,2]
[360718887,1746951039422,-400.0,0.00019258,2]
[360718888,1746951039432,-205.65,0.00019258,2]
[360718889,1746951039443,-400.0,0.00019258,2]
[360718890,1746951039453,-400.0,0.00019258,2]
[360718891,1746951039462,-261.03,0.00019258,2]
[360718892,1746951039471,-451.27850082,0.00019258,2]
[360718893,1746951039480,-401.63035676,0.00019258,2]
[360718894,1746951039489,-484.66595154,0.00019258,2]
[360718895,1746951039498,-400.87407084,0.00019258,2]
[360718896,1746951039507,-400.0,0.00019258,2]
[360718897,1746951039517,-400.0,0.00019258,2]
[360718898,1746951039527,-400.0,0.00019258,2]
[360718899,1746951039536,-400.0,0.00019258,2]
[360718900,1746951039547,-400.0,0.00019258,2]
[360718901,1746951039556,-204.26434761,0.00019258,2]
[360718902,1746951039567,-195.73565239,0.00019258,2]
[360718903,1746951039576,-400.0,0.00019258,2]
[360718904,1746951039585,-400.0,0.00019258,2]
[360718905,1746951039594,-400.0,0.00019258,2]
[360718906,1746951039603,-400.0,0.00019258,2]
[360718907,1746951039612,-400.0,0.00019258,2]
[360718908,1746951039622,-434.51,0.00019258,2]
[360718909,1746951039634,-400.0,0.00019258,2]
[360718910,1746951039643,-400.0,0.00019258,2]
[360718911,1746951039652,-400.0,0.00019258,2]
[360718912,1746951039662,-400.0,0.00019258,2]
[360718913,1746951039671,-400.0,0.00019258,2]
[360718914,1746951039681,-400.0,0.00019258,2]
[360718915,1746951039691,-400.0,0.00019258,2]
[360718916,1746951039701,-400.0,0.00019258,2]
[360718917,1746951039713,-400.0,0.00019258,2]
[360718918,1746951039732,-400.0,0.00019258,2]
[360718919,1746951039743,-400.0,0.00019258,2]
[360718920,1746951039753,-400.0,0.00019258,2]
[360718921,1746951039763,-400.0,0.00019258,2]
[360718922,1746951039772,-400.0,0.00019258,2]
[360718923,1746951039782,-400.0,0.00019258,2]
[360718924,1746951039791,-411.44511955,0.00019258,2]
[360718925,1746951039800,-400.0,0.00019258,2]
[360718926,1746951039809,-400.0,0.00019258,2]
[360718927,1746951039819,-400.0,0.00019258,2]
[360718928,1746951039828,-400.0,0.00019258,2]
[360718929,1746951039837,-400.0,0.00019258,2]
[360718930,1746951039847,-400.0,0.00019258,2]
[360718931,1746951039860,-400.0,0.00019258,2]
[360718932,1746951039870,-400.0,0.00019258,2]
[360718933,1746951039880,-198.24279354,0.00019258,2]
[360718934,1746951039891,-400.0,0.00019258,2]
[360718935,1746951039901,-400.0,0.00019258,2]
[360718936,1746951039910,-400.0,0.00019258,2]
[360718937,1746951039919,-400.0,0.00019258,2]
[360718938,1746951039928,-400.0,0.00019258,2]
[360718939,1746951039939,-400.0,0.00019258,2]
[360718940,1746951039950,-400.0,0.00019258,2]
[360718941,1746951039959,-400.0,0.00019258,2]
[360718942,1746951039969,-400.0,0.00019258,2]
[360718943,1746951039978,-400.0,0.00019258,2]
[360718944,1746951039987,-117.06643452,0.00019258,2]
[360718945,1746951039999,-282.93356548,0.00019258,2]
[360718946,1746951040009,-400.0,0.00019258,2]
[360718947,1746951040019,-400.0,0.00019258,2]
[360718948,1746951040029,-400.0,0.00019258,2]
[360718949,1746951040039,-400.0,0.00019258,2]
[360718950,1746951040049,-400.0,0.00019258,2]
[360718951,1746951040058,-423.47,0.00019258,2]
[360718952,1746951040068,-88.75672114,0.00019258,2]
[360718953,1746951040079,-311.24327886,0.00019258,2]
[360718954,1746951040091,-92.75672114,0.00019258,2]
[360718955,1746951040102,-307.24327886,0.00019258,2]
[360718956,1746951040112,-400.0,0.00019258,2]
[360718957,1746951040121,-459.8,0.00019258,2]
[360718958,1746951040131,-400.0,0.00019258,2]
[360718959,1746951040140,-400.0,0.00019258,2]
[360718961,1746951040149,-400.0,0.00019258,2]
[360718963,1746951040159,-400.0,0.00019258,2]
[360718964,1746951040168,-549.92,0.00019258,2]
[360718966,1746951040177,-400.0,0.00019258,2]
[360718968,1746951040187,-202.56880611,0.00019275,2]
[360718970,1746951040197,-4881.93500029,0.00019323,2]
[360718972,1746951040206,-718.37,0.00019327,2]
[360718974,1746951040215,-202.56880611,0.00019338,2]
[360718976,1746951040225,-202.56880611,0.000194,2]
[360718978,1746951040235,-151.0,0.00019421,2]
[360718980,1746951040244,-214.15573834,0.00019421,2]
[360718982,1746951040254,-202.56880611,0.00019463,2]
[360718984,1746951040264,-285.5,0.00019509,2]
[360718986,1746951040273,-202.56880611,0.00019525,2]
[360718988,1746951040283,-327.66269217,0.00019554,2]
[360718990,1746951040292,-400.0,0.00019557,2]
[360718992,1746951040301,-400.0,0.00019557,2]
[360718994,1746951040311,-400.0,0.00019557,2]
[360718996,1746951040322,-400.0,0.00019557,2]
[360718998,1746951040331,-400.0,0.00019557,2]
[360719000,1746951040342,-400.0,0.00019557,2]
[360719002,1746951040351,-400.0,0.00019557,2]
[360719004,1746951040360,-400.0,0.00019557,2]
[360719006,1746951040370,-400.0,0.00019557,2]
[360719008,1746951040380,-400.0,0.00019557,2]
[360719010,1746951040389,-400.0,0.00019557,2]
[360719012,1746951040398,-400.0,0.00019557,2]
[360719013,1746951040407,-400.0,0.00019557,2]
[360719015,1746951040418,-5936.0,0.00019558,2]
[360719017,1746951040427,-1242.0,0.00019558,2]
[360719019,1746951040436,-202.56880611,0.00019588,2]
[360719021,1746951040447,-799.49949641,0.00019623,2]
[360719023,1746951040457,-158.74,0.0001964,2]
[360719026,1746951040468,-202.56880611,0.0001965,2]
[360719028,1746951040478,-6793.0,0.00019673,2]
[360719030,1746951040487,-4022.0,0.00019673,2]
[360719032,1746951040496,-879.0,0.00019673,2]
[360719033,1746951040505,-205.886,0.00019673,2]
[360719035,1746951040516,-834.0,0.00019673,2]
[360719038,1746951040527,-202.56880611,0.00019713,2]
[360719040,1746951040536,-151.0,0.00019726,2]
[360719041,1746951040545,-400.0,0.00019734,2]
[360719043,1746951040554,-400.0,0.00019734,2]
[360719045,1746951040564,-400.0,0.00019734,2]
[360719047,1746951040573,-400.0,0.00019734,2]
[360719049,1746951040582,-400.0,0.00019734,2]
[360719051,1746951040591,-400.0,0.00019734,2]
[360719053,1746951040600,-400.7194625,0.00019734,2]
[360719055,1746951040609,-400.0,0.00019734,2]
[360719057,1746951040619,-400.0,0.00019734,2]
[360719059,1746951040628,-400.0,0.00019734,2]
[360719061,1746951040637,-400.0,0.00019734,2]
[360719063,1746951040647,-400.0,0.00019734,2]
[360719065,1746951040656,-400.0,0.00019734,2]
[360719067,1746951040665,-400.0,0.00019734,2]
[360719069,1746951040676,-400.0,0.00019734,2]
[360719071,1746951040688,-400.0,0.00019734,2]
[360719073,1746951040698,-400.0,0.00019734,2]
[360719075,1746951040709,-478.91995379,0.00019734,2]
[360719077,1746951040718,-400.0,0.00019734,2]
[360719079,1746951040728,-400.0,0.00019734,2]
[360719081,1746951040737,-400.0,0.00019734,2]
[360719083,1746951040746,-400.0,0.00019734,2]
[360719085,1746951040755,-400.0,0.00019734,2]
[360719087,1746951040765,-400.0,0.00019734,2]
[360719089,1746951040775,-400.0,0.00019734,2]
[360719091,1746951040784,-400.0,0.00019734,2]
[360719093,1746951040794,-501.78148475,0.00019734,2]
[360719094,1746951040804,-400.0,0.00019734,2]
[360719095,1746951040814,-400.0,0.00019734,2]
[360719096,1746951040823,-400.0,0.00019734,2]
[360719097,1746951040832,-400.0,0.00019734,2]
[360719098,1746951040843,-453.01599174,0.00019734,2]
[360719099,1746951040857,-400.0,0.00019734,2]
[360719101,1746951040868,-400.0,0.00019734,2]
[360719103,1746951040878,-400.0,0.00019734,2]
[360719105,1746951040888,-400.0,0.00019734,2]
[360719107,1746951040898,-400.0,0.00019734,2]
[360719109,1746951040909,-525.72954961,0.00019734,2]
[360719111,1746951040918,-352.86367504,0.00019734,2]
[360719113,1746951040930,-400.0,0.00019734,2]
[360719115,1746951040940,-400.0,0.00019734,2]
[360719117,1746951040950,-450.0,0.00019734,2]
[360719119,1746951040960,-170.38197828,0.00019734,2]
[360719121,1746951040970,-280.94968,0.00019734,2]
[360719123,1746951040980,-471.33683023,0.00019734,2]
[360719125,1746951040990,-400.0,0.00019734,2]
[360719127,1746951040999,-400.0,0.00019734,2]
[360719128,1746951041008,-400.0,0.00019734,2]
[360719130,1746951041018,-400.0,0.00019734,2]
[360719132,1746951041028,-450.0,0.00019734,2]
[360719134,1746951041038,-400.0,0.00019734,2]
[360719136,1746951041047,-400.0,0.00019734,2]
[360719138,1746951041056,-451.55029221,0.00019734,2]
[360719140,1746951041066,-300.0,0.00019767,2]
[360719141,1746951041075,-420.0,0.00019768,2]
[360719143,1746951041084,-202.56880611,0.00019775,2]
[360719145,1746951041094,-250.0,0.00019791,2]
[360719147,1746951041103,-151.27236706,0.00019796,2]
[360719149,1746951041112,-184.42517505,0.00019798,2]
[360719151,1746951041122,-400.0,0.00019799,2]
[360719152,1746951041131,-324.98819982,0.00019799,2]
[360719154,1746951041141,-400.0,0.00019799,2]
[360719156,1746951041150,-229.94803154,0.00019799,2]
[360719158,1746951041162,-400.0,0.00019799,2]
[360719160,1746951041172,-253.52642343,0.00019799,2]
[360719162,1746951041182,-400.0,0.00019799,2]
[360719164,1746951041191,-55.74215902,0.00019799,2]
[360719178,1746951041337,-400.0,0.00019734,2]
[360719180,1746951041347,-405.27460428,0.00019799,2]
[360719182,1746951041356,-236.55239892,0.00019799,2]
[360719184,1746951041368,-169.20509372,0.00019799,2]
[360719186,1746951041377,-167.50961743,0.00019799,2]
[360719188,1746951041387,-400.0,0.00019799,2]
[360719190,1746951041396,-400.0,0.00019799,2]
[360719192,1746951041405,-225.632461,0.00019799,2]
[360719194,1746951041414,-400.0,0.00019799,2]
[360719196,1746951041424,-2988.75282785,0.00019799,2]
[360719198,1746951041435,-595.870362,0.00019799,2]
[360719200,1746951041446,-291.77897415,0.00019799,2]
[360719202,1746951041455,-125.14804066,0.00019799,2]
[360719204,1746951041466,-274.85195934,0.00019799,2]
[360719206,1746951041475,-50.94304097,0.00019799,2]
[360719373,1746951043722,-3330.03678,0.00019405,2]
[360719377,1746951046521,-1551.89822029,0.00019405,2]
[360719378,1746951046531,-4881.93500029,0.00019488,2]
[360719379,1746951046541,-400.0,0.00019557,2]
[360719380,1746951046550,-400.0,0.00019734,2]
[360719381,1746951046560,-400.0,0.00019734,2]
[360719382,1746951046569,-400.0,0.00019734,2]
[360719383,1746951046578,-349.05695903,0.00019799,2]
[360719384,1746951046588,-400.0,0.00019799,2]
[360719385,1746951046597,-160.338622,0.00019799,2]
[360719386,1746951046606,-400.0,0.00019799,2]
[360719387,1746951046616,-400.0,0.00019799,2]
[360719388,1746951046628,-418.76,0.00019799,2]
[360719389,1746951046637,-400.0,0.00019799,2]
[360719390,1746951046646,-400.0,0.00019799,2]
[360719391,1746951046655,-400.0,0.00019799,2]
[360719392,1746951046665,-400.0,0.00019799,2]
[360719393,1746951046677,-237.96224329,0.00019799,2]
[360719394,1746951046694,-162.03775671,0.00019799,2]
[360719395,1746951046707,-400.0,0.00019799,2]
[360719396,1746951046720,-400.0,0.00019799,2]
[360719397,1746951046732,-289.13,0.00019799,2]
[360719398,1746951046745,-529.23,0.00019799,2]
[360719399,1746951046757,-400.0,0.00019799,2]
[360719400,1746951046770,-400.0,0.00019799,2]
[360719401,1746951046783,-665.41,0.00019799,2]
[360719402,1746951046795,-400.0,0.00019799,2]
[360719403,1746951046806,-400.0,0.00019799,2]
[360719404,1746951046819,-418.48,0.00019799,2]
[360719405,1746951046830,-400.0,0.00019799,2]
[360719406,1746951046840,-5290.1804,0.00019799,2]
[360719407,1746951046853,-202.56880611,0.00019838,2]
[360719408,1746951046866,-237.06,0.00019844,2]
[360719409,1746951046877,-150.294,0.00019858,2]
[360719410,1746951046888,-231.502,0.00019858,2]
[360719411,1746951046902,-191.736,0.00019858,2]
[360719412,1746951046915,-189.838,0.00019858,2]
[360719413,1746951046927,-217.656,0.00019858,2]